fUSD/lending_fUSD_20240922
["ID","MTS","AMOUNT","RATE_DAILY","PERIOD"]
[338878776,1726989046299,-88726.9523387,0.00013,2]
[338878777,1726989085211,355.41,0.00010959,2]
[338878778,1726989095760,542.98,0.00010959,2]
[338878779,1726989106276,205.68,0.00010959,2]
[338878780,1726989116822,171.4,0.00010959,2]
[338878781,1726989127573,857.01,0.00010959,2]
[338878786,1726989491136,304.95378638,0.00022,120]
[338878787,1726989563244,229.44,0.00012096,2]
[338878788,1726989565765,310.32,0.00010178,2]
[338878789,1726989573533,1000.0,0.00012172,2]
[338878790,1726989617650,153.03,0.00010959,2]
[338878791,1726989691981,250.0,0.00012085,2]
[338878792,1726989847373,250.0,0.0001216,2]
[338878793,1726989919211,2389.37000964,9e-05,2]
[338878794,1726989928882,10077.82671493,0.000101,2]
[338878795,1726989954052,2131.91,6.94e-05,2]
[338878804,1726990077246,5017.9412076,0.00012,2]
[338878805,1726990121658,270.69194267,0.0001,2]
[338878806,1726990149101,153.79,0.00010959,2]
[338878836,1726990172269,313.45,0.00010649,2]
[338878840,1726990231842,-200.0,0.00012506,2]
[338878841,1726990231852,-267.41,0.00012568,2]
[338878842,1726990231861,-299.2524,0.000127,2]
[338878843,1726990231872,-347.337,0.000127,2]
[338878845,1726990231881,-1068.0,0.000127,2]
[338878847,1726990231891,-3644.983618,0.000127,2]
[338878850,1726990231902,-337.36323209,0.000127,2]
[338878851,1726990231928,-471.97069803,0.000127,2]
[338878852,1726990231937,-66.59170383,0.00012799,2]
[338878853,1726990232043,-83.40829617,0.00012799,2]
[338878854,1726990232052,-214.84464383,0.000128,2]
[338878855,1726990232156,-479.57301165,0.000128,2]
[338878856,1726990232167,-568.42,0.000128,2]
[338878857,1726990232178,-60589.81826941,0.000128,2]
[338878858,1726990232190,-811.05669613,0.000128,2]
[338878871,1726990238017,-250.0,0.00012369,2]
[338878872,1726990238027,-1689.80159629,0.000128,2]
[338878873,1726990238126,-133210.79738269,0.000128,2]
[338878874,1726990238136,-1824.0,0.000128,2]
[338878875,1726990238145,-150.0,0.0001287,2]
[338878876,1726990238155,-74657.51951747,0.0001287,2]
[338878877,1726990238164,-4454.3175481,0.00012889,2]
[338878878,1726990238174,-7500.0,0.000129,2]
[338878879,1726990238184,-499.99,0.000129,2]
[338878880,1726990238193,-185.71939874,0.000129,2]
[338878881,1726990238203,-612.6842302,0.000129,2]
[338878882,1726990238213,-174.19674093,0.000129,2]
[338878883,1726990238222,-179.91941837,0.000129,2]
[338878884,1726990238232,-2379.91505313,0.000129,2]
[338878885,1726990238241,-313.45,0.00012913,2]
[338878886,1726990238250,-500.0,0.00012973,2]
[338878887,1726990238260,-500.0,0.00012973,2]
[338878888,1726990238270,-211.99856331,0.00012973,2]
[338878889,1726990238280,-500.0,0.00012973,2]
[338878890,1726990238290,-1016.9476,0.00012986,2]
[338878891,1726990238300,-153.0,0.0001299,2]
[338878892,1726990238310,-500.0,0.00012999,2]
[338878893,1726990238319,-500.0,0.00012999,2]
[338878894,1726990238329,-500.0,0.00012999,2]
[338878895,1726990238339,-500.0,0.00012999,2]
[338878896,1726990238348,-433.98147013,0.00012999,2]
[338878897,1726990238359,-500.0,0.00012999,2]
[338878898,1726990238369,-500.0,0.00012999,2]
[338878899,1726990238378,-256.33770822,0.00012999,2]
[338878900,1726990238388,-300.02,0.00012999,2]
[338878901,1726990238397,-81554.66168795,0.00012999,2]
[338878902,1726990238407,-543.0,0.00013,2]
[338878903,1726990238417,-422124.53133667,0.00013,2]
[338878904,1726990238427,-51827.31104837,0.00013,2]
[338878905,1726990238594,-1607.85682436,0.00013,2]
[338878908,1726990239888,-563.31,0.00013,2]
[338878909,1726990240010,-14149.63151993,0.00013,2]
[338878910,1726990240110,-1428.000035,0.00013,2]
[338878911,1726990240122,-14743.1286155,0.00013,2]
[338878912,1726990240134,-945.525604,0.00013,2]
[338878913,1726990240145,-1415.33885428,0.00013,2]
[338878914,1726990240212,-2847.11698804,0.00013,2]
[338878916,1726990240224,-735.24402019,0.00013,2]
[338879087,1726990242909,-486.90707577,0.000129,2]
[338879088,1726990243096,-689.13145686,0.000129,2]
[338879096,1726990245783,-1911.86147911,0.000129,2]
[338879097,1726990245792,-3891.45211635,0.000129,2]
[338879098,1726990246099,-3608.54788365,0.000129,2]
[338879099,1726990246109,-732.94890413,0.000129,2]
[338879100,1726990246119,-28744.60289872,0.00013,2]
[338879101,1726990246131,-637.99,0.00013,2]
[338879103,1726990270450,181.41,0.00010959,2]
[338879104,1726990280981,151.17,0.00010959,2]
[338879105,1726990291726,755.89,0.00010959,2]
[338879113,1726990412767,576.05995668,0.00022,120]
[338879114,1726990422180,160.367976,0.00015,120]
[338879115,1726990423686,400.0,0.00021,60]
[338879117,1726990490570,250.0,0.00012005,2]
[338879118,1726990601337,170.99,0.00012092,2]
[338879119,1726990661966,366.62,0.00012079,2]
[338879120,1726990672949,300.39,0.00012076,2]
[338879121,1726990679557,186.91,0.00010959,2]
[338879122,1726990713544,7636.5,0.00011957,2]
[338879123,1726990713977,840.0,0.00011957,2]
[338879124,1726990742659,371.04,0.00010039,2]
[338879125,1726990768633,828.65,0.00011935,2]
[338879126,1726990932210,485.18373979,0.00012203,2]
[338879128,1726991072842,250.0,0.00011915,2]
[338879129,1726991106611,1025.0,0.0001222,2]
[338879130,1726991117621,1025.0,0.0001222,2]
[338879136,1726991135220,1052.6891706,0.0001222,2]
[338879137,1726991170094,172.99,9.636e-05,2]
[338879138,1726991216048,170.74,0.00010959,2]
[338879162,1726991252930,328.0,0.00011897,2]
[338879163,1726991294731,18598.64,0.00011901,2]
[338879164,1726991339025,165.94,0.00011901,2]
[338879165,1726991339228,165.94,0.00011921,2]
[338879166,1726991339647,165.94,0.00011941,2]
[338879167,1726991339917,165.94,0.00011961,2]
[338879169,1726991360628,221.54,0.00011901,2]
[338879176,1726991431977,-500.0,0.000123,4]
[338879177,1726991431987,-371.04,0.00012303,2]
[338879178,1726991431997,-1000.0,0.000124,4]
[338879179,1726991432006,-168.55,0.00012445,2]
[338879180,1726991432016,-1500.0,0.000125,4]
[338879181,1726991432025,-1625.5829525,0.000126,4]
[338879182,1726991432093,-374.4170475,0.000126,4]
[338879183,1726991432102,-933.5829525,0.000127,4]
[338879184,1726991432138,-577.08950482,0.000127,4]
[338879185,1726991432150,-1089.32754268,0.000127,4]
[338879186,1726991432160,-150.0,0.00012712,2]
[338879187,1726991432169,-150.0,0.00012735,2]
[338879188,1726991432178,-151.2602227,0.00012741,2]
[338879189,1726991432188,-890.24,0.00012741,2]
[338879190,1726991432197,-150.99,0.00012741,2]
[338879191,1726991432207,-499.99,0.00012741,2]
[338879192,1726991432216,-125.79311378,0.00012752,2]
[338879193,1726991432228,-24.20688622,0.00012752,2]
[338879194,1726991432238,-150.0,0.00012798,2]
[338879195,1726991432248,-1583.56190843,0.000128,2]
[338879196,1726991432268,-4590.2892945,0.000128,2]
[338879197,1726991432278,-500.0,0.000128,4]
[338879198,1726991432287,-846.1556,0.000128,2]
[338879199,1726991432297,-150.0,0.00012804,2]
[338879200,1726991432307,-163.51,0.00012828,2]
[338879201,1726991432317,-150.0,0.00012889,2]
[338879202,1726991432331,-150.0,0.0001289,2]
[338879203,1726991432340,-150.0,0.00012899,2]
[338879204,1726991432349,-424.6085798,0.000129,2]
[338879210,1726991438265,-31844.98063836,0.000129,2]
[338879211,1726991438282,-427.20419193,0.000129,2]
[338879212,1726991438420,-113442.80378991,0.000129,2]
[338879213,1726991438431,-7500.0,0.000129,2]
[338879214,1726991438442,-500.0,0.000129,4]
[338879215,1726991438452,-185.71939874,0.000129,2]
[338879216,1726991438461,-360.11567722,0.000129,2]
[338879217,1726991438470,-612.6842302,0.000129,2]
[338879218,1726991438480,-2507.05165206,0.000129,2]
[338879219,1726991438489,-174.19674093,0.000129,2]
[338879220,1726991438499,-179.91941837,0.000129,2]
[338879221,1726991438509,-2379.91505313,0.000129,2]
[338879222,1726991438518,-150.0,0.00012927,2]
[338879223,1726991438528,-150.0,0.00012946,2]
[338879224,1726991438537,-150.0,0.00012953,2]
[338879225,1726991438547,-211.99856331,0.00012973,2]
[338879226,1726991438557,-500.0,0.00012973,2]
[338879227,1726991438566,-500.0,0.00012973,2]
[338879228,1726991438576,-500.0,0.00012973,2]
[338879229,1726991438595,-6173.85120285,0.00012978,2]
[338879230,1726991438604,-1016.9476,0.00012986,2]
[338879231,1726991438614,-153.0,0.0001299,2]
[338879232,1726991438623,-153.0,0.0001299,2]
[338879233,1726991438632,-500.0,0.00012999,2]
[338879234,1726991438641,-256.33770822,0.00012999,2]
[338879235,1726991438650,-500.0,0.00012999,2]
[338879236,1726991438659,-433.98147013,0.00012999,2]
[338879237,1726991438669,-500.0,0.00012999,2]
[338879238,1726991438679,-500.0,0.00012999,2]
[338879239,1726991438688,-500.0,0.00012999,2]
[338879240,1726991438697,-500.0,0.00012999,2]
[338879241,1726991438707,-300.02,0.00012999,2]
[338879242,1726991438716,-602.0,0.00013,2]
[338879243,1726991438725,-437778.42929905,0.00013,2]
[338879244,1726991438737,-691.69526512,0.00013,2]
[338879245,1726991438747,-3010.96331949,0.00013,2]
[338879246,1726991438760,-680.37326845,0.00013,2]
[338879258,1726991440046,-4881.6624,0.000129,2]
[338879259,1726991440056,-65028.80117765,0.00013,2]
[338879260,1726991440066,-228294.96370472,0.00013,2]
[338879261,1726991440078,-20721.79715862,0.00013,2]
[338879262,1726991440155,-306.3573891,0.00013,2]
[338879283,1726991443349,-169272.30430402,0.00013,2]
[338879305,1726991446014,-545.0,0.00013,2]
[338879306,1726991446026,-907.92673796,0.00013,2]
[338879307,1726991446067,-1389.72685019,0.00013,2]
[338879308,1726991446176,-635.22937075,0.00013,2]
[338879309,1726991446190,-442.80899785,0.00013,2]
[338879310,1726991446201,-6364.6,0.00013,2]
[338879311,1726991446231,-1261.02,0.00013,2]
[338879312,1726991446284,-635.634996,0.00013,2]
[338879315,1726991454492,352.33,0.00011013,2]
[338879317,1726991518168,190.04,0.00010959,2]
[338879318,1726991528715,158.37,0.00010959,2]
[338879320,1726991539236,791.87,0.00010959,2]
[338879322,1726991590356,2586.87141804,0.0001,2]
[338879323,1726992005306,344.7,0.0001041,2]
[338879324,1726992273150,172.99,9.718e-05,2]
[338879325,1726992339962,290.97,0.00012181,2]
[338879327,1726992363595,250.0,0.00012181,2]
[338879328,1726992414309,155.64,0.00010959,2]
[338879329,1726992416435,620.92,0.00012216,2]
[338879341,1726992523281,1000.0,0.00012051,2]
[338879363,1726992556206,324.37,0.00012123,2]
[338879369,1726992622749,347.49,0.00010169,2]
[338879374,1726992632173,-300.0,0.000123,4]
[338879375,1726992632184,-65.06759219,0.00012344,2]
[338879376,1726992632335,-182.27240781,0.00012344,2]
[338879377,1726992632345,-600.0,0.000124,4]
[338879378,1726992632355,-347.49,0.00012433,2]
[338879379,1726992632365,-900.0,0.000125,4]
[338879380,1726992632375,-1200.0,0.000126,4]
[338879381,1726992632385,-177.85,0.00012678,2]
[338879382,1726992632394,-1500.0,0.000127,4]
[338879383,1726992632403,-375.39,0.000127,2]
[338879384,1726992632413,-150.0,0.00012736,2]
[338879385,1726992632423,-150.0,0.00012763,2]
[338879386,1726992632432,-239.69435199,0.000128,4]
[338879387,1726992632448,-60.30564801,0.000128,4]
[338879388,1726992632461,-150.0,0.00012876,2]
[338879389,1726992632470,-1000.0,0.00012877,2]
[338879390,1726992632479,-1000.0,0.00012877,2]
[338879391,1726992632488,-1000.0,0.00012877,2]
[338879392,1726992632497,-1000.0,0.00012877,2]
[338879393,1726992632506,-1000.0,0.00012877,2]
[338879394,1726992632516,-1000.0,0.00012877,2]
[338879395,1726992632525,-1000.0,0.00012877,2]
[338879396,1726992632534,-1000.0,0.00012877,2]
[338879397,1726992632543,-1000.0,0.00012877,2]
[338879398,1726992632552,-1000.0,0.00012877,2]
[338879399,1726992632562,-1000.0,0.00012877,2]
[338879400,1726992632571,-1000.0,0.00012877,2]
[338879401,1726992632580,-1000.0,0.00012877,2]
[338879402,1726992632589,-1000.0,0.00012877,2]
[338879403,1726992632599,-1000.0,0.00012877,2]
[338879404,1726992632608,-1000.0,0.00012877,2]
[338879405,1726992632618,-1000.0,0.00012877,2]
[338879406,1726992632626,-1000.0,0.00012877,2]
[338879407,1726992632636,-1000.0,0.00012877,2]
[338879408,1726992632645,-1000.0,0.00012877,2]
[338879409,1726992632654,-1000.0,0.00012877,2]
[338879410,1726992632664,-1000.0,0.00012877,2]
[338879411,1726992632674,-1000.0,0.00012877,2]
[338879412,1726992632683,-1000.0,0.00012877,2]
[338879413,1726992632696,-1000.0,0.00012877,2]
[338879414,1726992632709,-1000.0,0.00012877,2]
[338879415,1726992632718,-1000.0,0.00012877,2]
[338879416,1726992632727,-1000.0,0.00012877,2]
[338879417,1726992632736,-1000.0,0.00012877,2]
[338879418,1726992632745,-1000.0,0.00012877,2]
[338879419,1726992632755,-2500.0,0.000129,2]
[338879420,1726992632764,-1515.0074,0.000129,2]
[338879421,1726992632773,-330.172,0.000129,2]
[338879422,1726992632782,-499.99,0.000129,2]
[338879423,1726992632791,-300.0,0.000129,4]
[338879424,1726992632800,-488.63260276,0.000129,2]
[338879425,1726992632809,-179.91941837,0.000129,2]
[338879426,1726992632818,-185.71939874,0.000129,2]
[338879427,1726992632827,-612.6842302,0.000129,2]
[338879428,1726992632836,-360.11567722,0.000129,2]
[338879429,1726992632845,-2507.05165206,0.000129,2]
[338879430,1726992632854,-7500.0,0.000129,2]
[338879431,1726992632863,-2379.91505313,0.000129,2]
[338879432,1726992632873,-150.0,0.00012907,2]
[338879433,1726992632882,-500.0,0.00012973,2]
[338879434,1726992632891,-211.99856331,0.00012973,2]
[338879435,1726992632900,-500.0,0.00012973,2]
[338879436,1726992632910,-500.0,0.00012973,2]
[338879437,1726992632919,-1016.9476,0.00012986,2]
[338879438,1726992632928,-153.0,0.0001299,2]
[338879439,1726992632937,-153.0,0.0001299,2]
[338879440,1726992632949,-204.6691188,0.00012997,2]
[338879441,1726992632958,-7986.4268176,0.00012997,2]
[338879442,1726992632966,-300.02,0.00012999,2]
[338879443,1726992632975,-500.0,0.00012999,2]
[338879444,1726992632984,-500.0,0.00012999,2]
[338879445,1726992632993,-500.0,0.00012999,2]
[338879446,1726992633002,-500.0,0.00012999,2]
[338879447,1726992633011,-500.0,0.00012999,2]
[338879448,1726992633020,-256.33770822,0.00012999,2]
[338879449,1726992633029,-433.98147013,0.00012999,2]
[338879450,1726992633039,-500.0,0.00012999,2]
[338879451,1726992633048,-210.42,0.00012999,2]
[338879452,1726992633057,-833.536,0.00012999,2]
[338879453,1726992633066,-551.0,0.00013,2]
[338879454,1726992633075,-511989.69260346,0.00013,2]
[338879455,1726992633085,-58050.35309346,0.00013,2]
[338879456,1726992633099,-288.76661781,0.00013,2]
[338879457,1726992633110,-753.00456163,0.00013,2]
[338879458,1726992633120,-570.33569236,0.00013,2]
[338879459,1726992633135,-544.57707993,0.00013,2]
[338879460,1726992633146,-418.54007673,0.00013,2]
[338879464,1726992638351,-3510.72,0.00013,2]
[338879465,1726992638362,-12294.39456971,0.00013,2]
[338879466,1726992638374,-5953.74932626,0.00013,2]
[338879467,1726992638510,-281675.47330386,0.00013,2]
[338879468,1726992638564,-2713.17171302,0.00013,2]
[338879469,1726992638576,-1700.51020281,0.00013,2]
[338879470,1726992638619,-466429.16801421,0.00013,2]
[338879594,1726992643192,-7993.45022661,0.00013,2]
[338879595,1726992643351,-1255.06367634,0.00013,2]
[338879596,1726992643364,-653.44587086,0.00013,2]
[338879597,1726992643404,-496.82802942,0.00013,2]
[338879598,1726992643513,-427.18428536,0.00013,2]
[338879599,1726992643524,-537.88,0.00013,2]
[338879600,1726992643536,-935.05871083,0.00013,2]
[338879606,1726992646248,-3026.39999999,0.000129,2]
[338879607,1726992646353,-2530.06608262,0.000129,2]
[338879608,1726992646363,-1122.38205947,0.00013,2]
[338879609,1726992646461,-724.93,0.00013,2]
[338879613,1726992693482,570.12,0.00010959,2]
[338879616,1726992879251,172.99,0.00010026,2]
[338879619,1726993164298,322.88,0.00010435,2]
[338879621,1726993390170,250.0,0.00012193,2]
[338879622,1726993403179,1050.0,0.00011,2]
[338879623,1726993472534,985.32,0.00012199,2]
[338879624,1726993495013,185.25,0.00010959,2]
[338879625,1726993569221,1000.0,0.00012,7]
[338879626,1726993631471,447.49,0.0001155,2]
[338879646,1726993717536,500.0,0.00011543,2]
[338879647,1726993719474,329.16,9.626e-05,2]
[338879648,1726993719828,329.16,0.00011889,2]
[338879667,1726993783485,176.63,0.00011545,2]
[338879669,1726993803411,150.0,0.00011889,2]
[338879670,1726993803597,150.0,0.00011889,2]
[338879671,1726993803795,150.0,0.00011889,2]
[338879672,1726993803980,235.49002413,0.00011889,2]
[338879673,1726993820651,150.0,0.00011545,2]
[338879704,1726993831487,-259.92,0.00012229,2]
[338879706,1726993831497,-454.74,0.00012234,2]
[338879708,1726993831506,-250.0,0.00012262,2]
[338879709,1726993831516,-215.22,0.00012266,2]
[338879710,1726993831525,-155.37,0.00012286,2]
[338879711,1726993831535,-155.37,0.00012289,2]
[338879712,1726993831545,-155.37,0.00012293,2]
[338879713,1726993831554,-155.37,0.00012297,2]
[338879714,1726993831564,-152.51,0.000123,2]
[338879715,1726993831574,-155.37,0.00012301,2]
[338879716,1726993831583,-445.41912,0.00012301,2]
[338879717,1726993831595,-54.57088,0.00012301,2]
[338879718,1726993831604,-155.37,0.00012305,2]
[338879719,1726993831615,-155.37,0.00012309,2]
[338879720,1726993831624,-155.37,0.00012312,2]
[338879721,1726993831634,-155.37,0.00012316,2]
[338879722,1726993831643,-250.0,0.0001232,2]
[338879723,1726993831655,-155.37,0.0001232,2]
[338879725,1726993831664,-155.37,0.00012324,2]
[338879727,1726993831673,-155.37,0.00012328,2]
[338879729,1726993831683,-155.37,0.00012332,2]
[338879731,1726993831692,-155.37,0.00012335,2]
[338879733,1726993831702,-155.37,0.00012339,2]
[338879735,1726993831712,-155.37,0.00012343,2]
[338879737,1726993831721,-155.37,0.00012347,2]
[338879739,1726993831731,-208.64857007,0.00012504,2]
[338879756,1726993837519,-91.35142993,0.00012504,2]
[338879757,1726993837528,-150.0,0.00012504,2]
[338879758,1726993837539,-1000.0,0.00012523,2]
[338879759,1726993837549,-1104.9926,0.000129,2]
[338879760,1726993837558,-154.9008,0.000129,2]
[338879761,1726993837568,-466.7917,0.000129,2]
[338879762,1726993837578,-174.19674093,0.000129,2]
[338879763,1726993837588,-309.2275,0.000129,2]
[338879764,1726993837599,-6046.11246227,0.000129,2]
[338879765,1726993837609,-325.7550685,0.000129,2]
[338879766,1726993837620,-153.73177365,0.000129,2]
[338879767,1726993837630,-169.00379344,0.000129,2]
[338879768,1726993837639,-220.60246218,0.000129,2]
[338879769,1726993837650,-217.84328184,0.000129,2]
[338879770,1726993837659,-500.0,0.00012973,2]
[338879771,1726993837668,-500.0,0.00012973,2]
[338879772,1726993837678,-152.82,0.0001299,2]
[338879773,1726993837687,-14970.71,0.00012999,2]
[338879774,1726993837696,-709.402,0.00012999,2]
[338879775,1726993837705,-168.336,0.00012999,2]
[338879776,1726993837715,-81554.66168795,0.00012999,2]
[338879777,1726993837724,-290740.55762415,0.00013,2]
[338879778,1726993837734,-14849.58,0.00013,2]
[338879779,1726993837745,-17955.59454552,0.00013,2]
[338879780,1726993837757,-466429.16801421,0.00013,2]
[338879781,1726993837770,-63616.70307694,0.00013,2]
[338879782,1726993837791,-114546.40070983,0.00013,2]
[338879828,1726993839324,-266.98326176,0.00013,2]
[338879829,1726993839383,-1914.0508733,0.00013,2]
[338879830,1726993839395,-20106.592846,0.00013,2]
[338879831,1726993839550,-415.1,0.00013,2]
[338879926,1726993842419,-51903.3156704,0.00013,2]
[338879927,1726993842431,-5171.74414913,0.00013,2]
[338879928,1726993842442,-5626.523833,0.00013,2]
[338879929,1726993842453,-1732.88242047,0.00013,2]
[338879930,1726993842464,-9493.0405304,0.00013,2]
[338879931,1726993842476,-604.07802196,0.00013,2]
[338879932,1726993842487,-707.3898016,0.00013,2]
[338879933,1726993842498,-640.224,0.00013,2]
[338879934,1726993842509,-3079.99995,0.00013,2]
[338879935,1726993842520,-394.58101345,0.00013,2]
[338879936,1726993842532,-597.18340926,0.00013,2]
[338879937,1726993842543,-1324.07917545,0.00013,2]
[338879938,1726993842554,-2126.874996,0.00013,2]
[338879939,1726993842566,-6317.4072637,0.00013,2]
[338879940,1726993842577,-296.13443335,0.00013,2]
[338879941,1726993842588,-430.65367495,0.00013,2]
[338879942,1726993842599,-353610.5441278,0.00013,2]
[338879943,1726993842610,-767.00700092,0.00013,2]
[338879944,1726993842621,-2421.6,0.00013,2]
[338879945,1726993845429,-564.8212458,0.00012973,2]
[338879946,1726993845440,-12024.98678817,0.00013,2]
[338879947,1726993845474,-4983.1836386,0.00013,2]
[338879948,1726993845486,-67555.08890951,0.00013,2]
[338879949,1726993845532,-437.57170826,0.00013,2]
[338879954,1726993865346,-238.76,0.00012859,2]
[338879955,1726993865370,-273.8932,0.000129,2]
[338879956,1726993865395,-300.0,0.00012999,2]
[338879957,1726993865423,-119187.3468,0.00013,2]
[338879958,1726993909240,-2538.48599194,0.000129,2]
[338879959,1726993909263,-217.17004568,0.000129,2]
[338879960,1726993909286,-500.0,0.00012973,2]
[338879961,1726993909310,-14863.5,0.00013,2]
[338879962,1726993909338,-11880.84396238,0.00013,2]
[338879963,1726994020418,177.78,0.00010959,2]
[338879965,1726994257268,317.47,0.00010632,2]
[338879966,1726994615496,500.0,0.00010547,2]
[338879980,1726994829686,301.59,0.00010421,2]
[338880045,1726995031522,-238.87,0.0001228,2]
[338880046,1726995031532,-218.38,0.0001228,2]
[338880047,1726995031541,-172.17,0.00012303,2]
[338880048,1726995031551,-516.49,0.00012324,2]
[338880049,1726995031560,-250.0,0.00012352,2]
[338880050,1726995031570,-1000.0,0.00012405,2]
[338880051,1726995031579,-192.93504488,0.00012436,2]
[338880052,1726995031591,-97.63495512,0.00012436,2]
[338880053,1726995031601,-301.59,0.00012685,2]
[338880054,1726995031610,-150.0,0.00012876,2]
[338880055,1726995031620,-300.0,0.00012876,2]
[338880056,1726995031629,-1000.0,0.00012877,2]
[338880057,1726995031639,-1000.0,0.00012877,2]
[338880058,1726995031647,-1000.0,0.00012877,2]
[338880059,1726995031659,-1000.0,0.00012877,2]
[338880060,1726995031668,-1000.0,0.00012877,2]
[338880061,1726995031678,-395.91238225,0.00012877,2]
[338880062,1726995031687,-1000.0,0.00012877,2]
[338880063,1726995031696,-1000.0,0.00012877,2]
[338880064,1726995031706,-1000.0,0.00012877,2]
[338880065,1726995031715,-1000.0,0.00012877,2]
[338880066,1726995031724,-1000.0,0.00012877,2]
[338880067,1726995031734,-1000.0,0.00012877,2]
[338880068,1726995031743,-1000.0,0.00012877,2]
[338880069,1726995031752,-1000.0,0.00012877,2]
[338880070,1726995031761,-361.12149315,0.00012877,2]
[338880071,1726995031772,-638.87850685,0.00012877,2]
[338880072,1726995031781,-554.33094225,0.00012877,2]
[338880073,1726995031796,-445.66905775,0.00012877,2]
[338880074,1726995031805,-829.91290639,0.00012877,2]
[338880075,1726995031816,-170.08709361,0.00012877,2]
[338880076,1726995031825,-1000.0,0.00012877,2]
[338880077,1726995031834,-686.64552326,0.00012877,2]
[338880078,1726995031846,-313.35447674,0.00012877,2]
[338880079,1726995031855,-1000.0,0.00012877,2]
[338880080,1726995031864,-687.01586339,0.00012877,2]
[338880089,1726995037671,-303.35,0.00012877,2]
[338880090,1726995037831,-9.63413661,0.00012877,2]
[338880091,1726995037841,-168.55,0.00012891,2]
[338880092,1726995037851,-499.99,0.00012891,2]
[338880093,1726995037861,-2385.9428,0.000129,2]
[338880094,1726995037870,-857.183,0.000129,2]
[338880095,1726995037880,-170.14506379,0.000129,2]
[338880096,1726995037889,-471.1311,0.000129,2]
[338880097,1726995037899,-1692.32399464,0.000129,2]
[338880098,1726995037909,-158.8066396,0.000129,2]
[338880099,1726995037919,-10000.0,0.00012963,2]
[338880100,1726995037928,-500.0,0.00012973,2]
[338880101,1726995037938,-1523.14014281,0.0001298,2]
[338880102,1726995037947,-152.81,0.0001299,2]
[338880103,1726995037956,-152.81,0.0001299,2]
[338880104,1726995037966,-152.81,0.0001299,2]
[338880105,1726995037975,-601.581,0.00012994,2]
[338880106,1726995037986,-168.336,0.00012994,2]
[338880107,1726995037996,-2180.5446984,0.00012995,2]
[338880108,1726995038006,-3073.3342715,0.00012995,2]
[338880109,1726995038015,-170.5575989,0.00012995,2]
[338880110,1726995038024,-6293.1354437,0.00012995,2]
[338880111,1726995038033,-447.84221691,0.00012995,2]
[338880112,1726995038045,-145370.27881208,0.00013,2]
[338880113,1726995038054,-289228.28109527,0.00013,2]
[338880114,1726995038067,-244750.2954619,0.00013,2]
[338880115,1726995038079,-473.48451638,0.00013,2]
[338880156,1726995039551,-259.39848917,0.00012963,2]
[338880157,1726995039608,-4320.87029486,0.00012963,2]
[338880158,1726995039617,-1071.79551347,0.00013,2]
[338880273,1726995042756,-1012.05906299,0.00013,2]
[338880281,1726995045552,-229.4671,0.000129,2]
[338880282,1726995045561,-12313.65866995,0.00013,2]
[338880283,1726995045573,-13039.16505135,0.00013,2]
[338880284,1726995045583,-30481.35534,0.00013,2]
[338880285,1726995045672,-13219.90308811,0.00013,2]
[338880286,1726995045723,-628.24728018,0.00013,2]
[338880287,1726995045735,-12707.0,0.00013,2]